Cogmind - Beta 15 @@@ ROGUE MODE // 2025.08.23 @ 01:13:00 Player: RHAHI Result: Destroyed by G-47 Trooper with Particle Gun Performance ------------- Evolutions (2) 1000 Regions Visited (3) 600 Robots Destroyed (90) 450 Value Destroyed (2201) 2201 Prototype IDs (7) 140 Alien Tech Used (0) 0 Bonus (0) 0 TOTAL SCORE: 4391 Bonus ------- None Cogmind --------- Core Integrity 0/550 Matter 291/300 Energy 265/265 System Corruption 6% Temperature Cool (9) Movement Rolling (123) Ox2 Location -8/Materials Parts ------- > --- POWER (1) -------- Reinforced Ion Engine > --- PROPULSION (3) --- Wheel Compact Wheel Compact Wheel > --- UTILITY (4) ------ Huge Storage Unit Utility Shielding Medium Armor Plating Medium Armor Plating > --- WEAPON (3) ------- High-powered Shotgun Improved Grenade Launcher Heavy Flail > --- INVENTORY (25) --- Light Ion Engine Heavy Ion Engine Cooled Ion Engine Deuterium Engine Light Treads Light Treads High-capacity Storage Unit High-capacity Battery (250) High-capacity Matter Pod (169) Advanced Visual Processing Unit Sensor Array Improved Sensor Array Improved Sensor Array Improved Signal Interpreter Seismic Detector Improved Power Shielding Improved Propulsion Shielding Improved Propulsion Shielding Improved Propulsion Shielding Improved Weapon Shielding Shock Absorption System Hacking Suite Hacking Suite Improved Field Recycling Unit (7) Mini Grenade Launcher Peak State ------------ > --- POWER ------------ Reinforced Ion Engine > --- PROPULSION ------- Aluminum Leg Wheel Compact Wheel > --- UTILITY ---------- Huge Storage Unit Utility Shielding Medium Armor Plating Improved Field Recycling Unit > --- WEAPON ----------- High-powered Shotgun Improved Grenade Launcher Heavy Flail > --- INVENTORY -------- Light Ion Engine Heavy Ion Engine Cooled Ion Engine Deuterium Engine Advanced Heat Sink Advanced Heat Sink High-capacity Storage Unit High-capacity Battery High-capacity Matter Pod Advanced Visual Processing Unit Sensor Array Improved Sensor Array Improved Sensor Array Improved Signal Interpreter Seismic Detector Improved Power Shielding Improved Weapon Shielding Shock Absorption System Hacking Suite Hacking Suite Particle Gun Particle Gun Particle Gun Mini Grenade Launcher [Rating: 28] Favorites ----------- Power Ion Engine Engine Ion Engine Propulsion Light Treads Treads Light Treads Leg Aluminum Leg Wheel Wheel Flight Unit Improved Flight Unit Utility Transport Network Coupler Device Field Recycling Unit Storage High-capacity Storage Unit Processor Transport Network Coupler Hackware Hacking Suite Protection Light Armor Plating Weapon Light Assault Rifle Energy Gun Medium Laser Ballistic Gun Light Assault Rifle Ballistic Cannon Light Cannon Launcher Mini Grenade Launcher Special Weapon Mining Laser Impact Weapon Heavy Flail Build | -11 -10 -9 -8 ------- Run | Yrd Mat Mat Mat Slots Evolved 4 | . . 2 2 Power . | . . . . Propulsion 1 | . . . 1 Utility 2 | . . 1 1 Weapon 1 | . . 1 . Parts Attached 66 | 8 14 17 27 Power 8 | 1 . 5 2 Engine 8 | 1 . 5 2 Core . | . . . . Reactor . | . . . . Propulsion 19 | 2 4 1 12 Treads 9 | . 4 . 5 Leg 1 | . . . 1 Wheel 8 | 2 . . 6 Hover . | . . . . Flight 1 | . . 1 . Utility 19 | 2 6 4 7 Device 5 | 1 2 1 1 Storage 5 | 1 3 1 . Processor 1 | . 1 . . Hackware 1 | . . . 1 Protection 7 | . . 2 5 Artifact . | . . . . Weapon 20 | 3 4 7 6 Energy Gun 3 | 2 . 1 . Energy Cannon . | . . . . Ballistic Gun 7 | 1 2 3 1 Ballistic Cannon 2 | . . 2 . Launcher 5 | . 1 1 3 Special Weapon 1 | . 1 . . Impact Weapon 2 | . . . 2 Slashing Weapon . | . . . . Piercing Weapon . | . . . . Special Melee Weapon . | . . . . Unidentified Prototypes 5 | . . 5 . Parts Lost 26 | . 1 4 21 Power 3 | . . 2 1 Propulsion 9 | . . . 9 Utility 5 | . 1 . 4 Weapon 9 | . . 2 7 Highest Loss Streak 14 | . 1 3 14 To Critical Strikes . | . . . . Average Backups 16 | 4 10 18 22 Power 2 | . 1 2 3 Propulsion 2 | 3 2 3 2 Utility 7 | . 2 6 13 Weapon 4 | 1 3 5 3 Tool/Special . | . . . . Unused Backups 34 | 3 5 4 22 Power 5 | . 1 2 2 Propulsion 7 | 3 3 . 1 Utility 17 | . 1 1 15 Weapon 5 | . . 1 4 Tool/Special . | . . . . Average Slot Usage (%) 97 | . 99 99 92 Engine 11 | . 14 10 8 Treads 18 | . 24 21 9 Wheel 5 | . 2 . 12 Device 4 | . 1 6 6 Storage 11 | . 14 11 9 Processor 8 | . 12 11 2 Hackware 1 | . . . 4 Protection 6 | . . 4 13 Energy Gun 1 | . 2 . . Ballistic Gun 18 | . 24 22 10 Ballistic Cannon 3 | . . 7 2 Launcher 3 | . . . 8 Special Weapon 1 | . . 1 . Peak Build Rating 28 | 9 9 17 28 Average Rating 14 | 5 7 12 22 On Entrance 8 | . 9 8 17 Naked Turns . | . . . . Heaviest Build 122 | 15 47 100 122 Greatest Support 60 | 20 40 40 60 Greatest Overweight (x) 9 | . 1 2 9 Average Overweight (x) 1 | . . 1 3 Largest Inventory Capacity 25 | 8 20 25 25 Average Capacity 19 | 7 14 20 25 Most Carried 25 | 8 12 25 25 Average Carried 16 | 5 10 18 22 Final Capacity 25 | 8 20 25 25 Final Carried 25 | 8 12 25 25 Class Distribution -------------------- 36% | Mutant 28% | Scavenger-Tank 17% | Skirmisher 10% | Scavenger-Mutant 6% | Tank Dominant Class ---------------- Mutant | -10/Materials Scavenger-Tank | -9/Materials Mutant | -8/Materials Resources | -11 -10 -9 -8 ----------- Run | Yrd Mat Mat Mat Matter Collected 1624 | 295 243 515 571 Remotely . | . . . . Salvage Created 2648 | 112 437 1036 1063 Parts 159 | 13 30 68 48 Haulers Intercepted 8 | . 2 4 2 Recyclers Shooed 2 | . . 1 1 Parts Field Recycled 86 | . . 34 52 Retrieved Matter 705 | . . 192 513 Parts Self-Destructed . | . . . . Prevented . | . . . . Kills | -11 -10 -9 -8 ------- Run | Yrd Mat Mat Mat Combat Hostiles Destroyed 53 | . 11 19 23 Guns 26 | . 9 13 4 Cannons 5 | . . 2 3 AOE 21 | . 2 4 15 Classes Destroyed 12 | 2 6 2 2 Worker 6 | . 1 . 5 Builder 6 | . . 4 2 Tunneler 3 | 3 . . . Hauler 8 | . 2 4 2 Recycler 8 | 1 . 5 2 Operator 3 | . 1 1 1 Watcher 3 | . 1 2 . Swarmer 11 | . 3 8 . Grunt 33 | . 8 7 18 Brawler 1 | . . . 1 Sentry 7 | . . 4 3 Hunter 1 | . . . 1 Best Kill Streak 10 | 4 4 9 10 Combat Bots Only 8 | . 4 5 8 Max Kills in Single Turn 5 | 1 2 4 5 Gunslinging . | . . . . Exploded 4 | . 1 1 4 Melee . | . . . . Uniques/NPCs Destroyed . | . . . . Combat | -11 -10 -9 -8 -------- Run | Yrd Mat Mat Mat Hostile Shots Fired 345 | . 74 91 180 Missed 89 | . 21 28 40 Hits 256 | . 53 63 140 Melee 1 | . . . 1 Projectile 255 | . 53 63 139 Critical Strikes 10 | . . 1 9 Damage Taken 4053 | . 552 866 2635 Core 845 | . 156 131 558 Absorbed by Shields . | . . . . Redirected to Shielding 17 | . . . 17 Regen/Repaired (Parts) 153 | . 153 . . Core Remaining (%) 68 | 100 37 67 . Volleys Fired 161 | 5 45 59 52 Largest 3 | 2 2 3 3 Hottest 148 | 60 100 140 148 Shots Fired 368 | 10 89 163 106 Gun 281 | 10 85 125 61 Cannon 50 | . . 29 21 Launcher 29 | . 3 6 20 Special 8 | . 1 3 4 Kinetic 311 | 5 73 151 82 Thermal 25 | 5 13 3 4 Explosive 29 | . 3 6 20 Electromagnetic 3 | . . 3 . Robot Hit Streak 12 | 4 5 10 12 Robot Miss Streak 4 | 1 3 3 4 Penetration Max . | . . . . Secondary Targets 5 | . 3 1 1 Max Gunslinging Chain 1 | . 1 1 1 Shots Hit Robots 250 | 8 53 111 78 Core Hits 159 | 4 29 63 63 Critical Kills 1 | . . . 1 Critical Parts Destroyed 2 | . . 1 1 Critical Strikes 7 | . 1 3 3 Burn 1 | . 1 . . Destroy 2 | . . 1 1 Blast 3 | . . 2 1 Smash 1 | . . . 1 Melee Attacks 7 | . . . 7 Impact 7 | . . . 7 Slashing . | . . . . Piercing . | . . . . Sneak Attacks . | . . . . Combat Hostiles . | . . . . Follow-up Attacks . | . . . . Damage Inflicted 5875 | 96 820 2006 2953 Guns 2195 | 96 543 772 784 Cannons 675 | . . 411 264 Explosions 2802 | . 277 823 1702 Melee 167 | . . . 167 Ramming 10 | . . . 10 Kinetic 2697 | 53 443 1153 1048 Thermal 451 | 43 100 282 26 Explosive 2520 | . 277 541 1702 Electromagnetic 30 | . . 30 . Impact 167 | . . . 167 Slashing . | . . . . Piercing . | . . . . Highest Corruption 6 | . . . 6 Average Corruption 4 | . . . 4 Corruption Purged . | . . . . Corruption Blocked . | . . . . Effects 26 | . . . 26 Message Errors 7 | . . . 7 Matter Fused 5 | . . . 5 Heat Flow Errors 4 | . . . 4 Energy Discharges 1 | . . . 1 Parts Rejected 1 | . . . 1 Data Loss (minor) 5 | . . . 5 Data Loss (major) 1 | . . . 1 Misfires 1 | . . . 1 Weapon Failures 1 | . . . 1 Overload Shots . | . . . . Overflow Damage 214 | . . 106 108 Projectiles 5 | . . 5 . Explosions 176 | . . 101 75 Melee 33 | . . . 33 Knockbacks 5 | . . 1 4 Impact 1 | . . . 1 Kinetic 4 | . . 1 3 Secondary . | . . . . Self-Inflicted Damage 576 | . . 124 452 Shots 15 | . . 3 12 Rammed 3 | . . . 3 Targets Rammed 3 | . . . 3 Kicked . | . . . . Crushed . | . . . . Highest Temperature 382 | . 165 93 382 Average Temperature 78 | . 46 27 134 Received Heat Transfer 1590 | . 228 228 1134 Effects 5 | . . . 5 Interference 3 | . . . 3 Matter Decay 1 | . . . 1 Damage (minor) 1 | . . . 1 Siege Activations . | . . . . Martial Activations . | . . . . Shielding Activations . | . . . . Robots Disrupted . | . . . . Combat Hostiles . | . . . . Robots Corrupted 1 | . . . 1 Combat Hostiles 1 | . . . 1 Parts Fried . | . . . . Impact Corruptions 2 | . . . 2 Robots Melted . | . . . . Combat Hostiles . | . . . . Parts Melted 1 | . 1 . . Heat Transferred 870 | 100 370 350 50 Parts Sabotaged . | . . . . Parts Stolen . | . . . . Parts Stripped . | . . . . Power Chain Reactions . | . . . . Alert | -11 -10 -9 -8 ------- Run | Yrd Mat Mat Mat Maximum Alert Level 1 | . . 1 1 Low Security (%) 65 | 100 100 38 63 Level 1 34 | . . 61 36 Level 2 . | . . . . Level 3 . | . . . . Level 4 . | . . . . Level 5 . | . . . . High Security . | . . . . Max Security . | . . . . Peak Influence 376 | 10 138 333 376 Initial 125 | . . 50 125 Average 145 | 2 35 216 173 Influence Increases 2032 | 20 370 699 943 Destroy 0b10 Robot/C 1060 | . 220 380 460 Destroy 0b10 Robot/NC 185 | 20 25 80 60 Destroy Leader 262 | . 66 92 104 Successful Hack 50 | . 14 6 30 Select Force Hacks 60 | . 30 . 30 Disable Machine 120 | . . 75 45 Destroy Structure 205 | . 15 66 124 Lose Combat Pursuer 90 | . . . 90 Influence Decreases 1734 | 20 250 521 943 Entered New Map 243 | . . 70 173 Time Decay 1081 | 20 240 411 410 Lost Part 260 | . 10 40 210 Purge Threat 150 | . . . 150 Squads Dispatched 12 | . 5 2 5 Investigation 5 | . 2 . 3 Extermination . | . . . . Reinforcement 7 | . 3 2 2 Assault . | . . . . Garrison . | . . . . Intercept . | . . . . Searches Triggered . | . . . . Construction Impeded 1 | . . 1 . Haulers Reinforced . | . . . . Active Scanning Responses . | . . . . Cargo Convoy Interrupts . | . . . . Stealth | -11 -10 -9 -8 --------- Run | Yrd Mat Mat Mat Distress Signals 9 | . 1 3 5 Communications Jammed . | . . . . Distress Signals . | . . . . Times Spotted 80 | . 19 25 36 Peak Tracking Total 9 | . 5 6 9 Tactical Retreats 2 | . . . 2 Traps | -11 -10 -9 -8 ------- Run | Yrd Mat Mat Mat Traps Triggered 2 | . 1 . 1 Indirectly . | . . . . Trap Hack Attempts . | . . . . Triggered . | . . . . Disarmed . | . . . . Reprogrammed . | . . . . Reused . | . . . . Traps Extracted . | . . . . Installed . | . . . . Triggered . | . . . . Machines | -11 -10 -9 -8 ---------- Run | Yrd Mat Mat Mat Machines Disabled 8 | . . 5 3 Max in Single Turn 2 | . . 2 1 Machines Repaired . | . . . . Machines Dismantled . | . . . . Machines Sabotaged . | . . . . Overloaded Fab Kills . | . . . . Hacking | -11 -10 -9 -8 --------- Run | Yrd Mat Mat Mat Machines Accessed 13 | . 5 1 7 Terminals 9 | . 3 1 5 Fabricators . | . . . . Repair Stations 1 | . 1 . . Recycling Units 2 | . 1 . 1 Scanalyzers 1 | . . . 1 Garrison Access . | . . . . Total Hacks 37 | . 15 3 19 Successful 21 | . 8 1 12 Failed 16 | . 7 2 7 Catastrophic 5 | . 2 1 2 Database Lockouts . | . . . . Manual 18 | . 7 3 8 Terminals 26 | . 8 3 15 Fabricators . | . . . . Repair Stations 4 | . 4 . . Recycling Units 4 | . 3 . 1 Scanalyzers 3 | . . . 3 Garrison Access . | . . . . Terminal Hacks 14 | . 2 1 11 Robot Analysis 4 | . . 1 3 Prototype ID Bank 1 | . . . 1 Branch Access Points 1 | . . . 1 Terminal Index 1 | . 1 . . Alert Level 1 | . . . 1 Unreport Threat 1 | . . . 1 Locate Traps 2 | . 1 . 1 Maintenance Status 1 | . . . 1 Investigation Status 1 | . . . 1 Zone Layout 1 | . . . 1 Fabricator Hacks . | . . . . Repair Station Hacks 4 | . 4 . . Scan Component 2 | . 2 . . Repair 2 | . 2 . . Recycling Unit Hacks . | . . . . Scanalyzer . | . . . . Garrison Access Hacks . | . . . . Unauthorized Hacks 3 | . 2 . 1 Terminals 1 | . 1 . . Assimilate 1 | . 1 . . Fabricators . | . . . . Repair Stations . | . . . . Recycling Units 2 | . 1 . 1 Tunnel 2 | . 1 . 1 Scanalyzers . | . . . . Garrison Access . | . . . . Data Cores Recovered . | . . . . Used . | . . . . Hacking Detections 10 | . 3 1 6 Full Trace Events 3 | . 1 . 2 Feedback Events 1 | . . . 1 Corruption 1 | . . . 1 Feedback Blocked . | . . . . Robot Schematics Acquired . | . . . . Robots Built . | . . . . Authchips . | . . . . Time . | . . . . Total Robot Build Rating . | . . . . Part Schematics Acquired . | . . . . Parts Built . | . . . . Authchips . | . . . . Time . | . . . . Total Part Build Rating . | . . . . Parts Repaired 2 | . 2 . . Time 52 | . 52 . . Parts Recycled . | . . . . Recycled Matter . | . . . . Retrieved Matter . | . . . . Retrieved Components . | . . . . Parts Scanalyzed . | . . . . Part Schematics Acquired . | . . . . Parts Damaged . | . . . . Bothacking | -11 -10 -9 -8 ------------ Run | Yrd Mat Mat Mat Used RIF Installer . | . . . . Robots Hacked . | . . . . Non-combat . | . . . . Combat . | . . . . Robot Hacks Applied . | . . . . Relay Couplers Released . | . . . . Fabnet Peak Effective % . | . . . . Robots Rewired . | . . . . Allies Hacked . | . . . . Hacks Repelled . | . . . . Allies | -11 -10 -9 -8 -------- Run | Yrd Mat Mat Mat Total Allies . | . . . . Largest Group . | . . . . Highest-Rated Group . | . . . . Highest-Rated Ally . | . . . . Total Orders . | . . . . Ally Attacks . | . . . . Total Damage . | . . . . Kills . | . . . . Allies Corrupted . | . . . . Allies Melted . | . . . . Intel | -11 -10 -9 -8 ------- Run | Yrd Mat Mat Mat Active Infowar (turns) 2212 | 14 835 1115 248 Sensors 133 | . 34 99 . Terrain 60 | 14 46 . . Seismic 4 | . 4 . . T.N.C. 2114 | . 751 1115 248 Robot Analysis Total 4 | . . 1 3 Derelict Logs Recovered . | . . . . Drone Launches . | . . . . Drone Recoveries . | . . . . Exploration | -11 -10 -9 -8 ------------- Run | Yrd Mat Mat Mat Turns Passed 3052 | 94 850 1115 993 Spaces Moved 1206 | 64 392 338 412 Core 2 | 2 . . . Treads 768 | . 338 338 92 Legs . | . . . . Wheels 436 | 62 54 . 320 Hover . | . . . . Flight . | . . . . Fastest Speed 50 | 50 80 240 123 Average Speed 188 | 79 172 252 168 Slowest Speed 560 | 80 240 320 560 Overloaded Moves . | . . . . Propulsion Burnouts . | . . . . Robots Hopped . | . . . . Potential Cave-ins . | . . . . Cave-ins Triggered . | . . . . Exploration Rate (%) 36 | 5 62 32 46 Regions Visited 3 Branch Regions . Pre-discovered Areas 2 | . 1 . 1 Known Exits Taken . | . . . . Unknown Exits Taken 3 | 1 1 1 . Scrap Searched . | . . . . Spaces Dug 3 | . 1 . 2 Terrain Destroyed 234 | . 13 64 157 Melee 1 | . . . 1 Projectile 3 | . 1 1 1 AOE 230 | . 12 63 155 Terrain Rammed . | . . . . Walls Destroyed . | . . . . Machines Disabled . | . . . . Actions | -11 -10 -9 -8 --------- Run | Yrd Mat Mat Mat Total 1664 | 96 487 484 597 Wait 42 | . 9 13 20 Move 1203 | 63 391 337 412 Hop . | . . . . Pick Up 88 | 13 10 28 37 Fast Attach 22 | 8 6 2 6 Attach 34 | . 2 9 23 Detach 10 | 1 2 2 5 Swap 47 | . 10 22 15 Drop 47 | 6 12 12 17 Fire 161 | 5 45 59 52 Melee 7 | . . . 7 Ram . | . . . . Kick . | . . . . Crush 3 | . . . 3 Escape Stasis . | . . . . Rewire . | . . . . Trap . | . . . . Miscellaneous . | . . . . Route ------- -11/Scrapyard -10/Materials (discovered 2 exits: *Mat x2) -9/Materials -8/Materials History --------- Turn | Location | Event 27 | -11/Scrapyard | Discovered new exit (range 14) 95 | -11/Scrapyard | Entered Materials 246 | -10/Materials | Discovered new exit (range 12) 651 | -10/Materials | Repaired Lgt. Treads 680 | -10/Materials | Repaired Lgt. Treads 749 | -10/Materials | Core integrity fell below 50% 775 | -10/Materials | Discovered new exit (range 5) 800 | -10/Materials | Build established: Mutant 945 | -10/Materials | Entered another Materials area 945 | -9/Materials | Evolved 2 slots: Utility x1, Weapon x1 1240 | -9/Materials | Build established: Skirmisher 1405 | -9/Materials | Lost 3 parts (2p1w) 1852 | -9/Materials | Build established: Scavenger-Tank 1893 | -9/Materials | Discovered new exit (range 9) 2060 | -9/Materials | Entered another Materials area 2060 | -8/Materials | Evolved 2 slots: Propulsion x1, Utility x1 2385 | -8/Materials | Destroyed 8 combat bots 2410 | -8/Materials | Core integrity fell below 50% 2438 | -8/Materials | Lost 14 parts (6n3u5w) 2716 | -8/Materials | Core integrity fell below 20% 2760 | -8/Materials | Lost 6 parts (1p3n1u1w) 2774 | -8/Materials | Destroyed 7 combat bots 3053 | -8/Materials | Destroyed by G-47 Trooper with Particle Gun Last Messages --------------- 03026_ Dropped Particle Gun. 03027_ Acquired Imp. Propulsion Shielding. 03028_ Triggered Alarm Trap. 03028_ An alarm sounds. 03028_ ALERT: Alarm triggered, dispatching investigation squad. 03029_ K-01 Serf collects debris. 03029_ Acquired Lgt. Treads. 03030_ % TIH KOUMKHC>TW=GZT2F5C 03032_ K-01 Serf collects debris. 03033_ Dropped Particle Gun. 03034_ Acquired Imp. Propulsion Shielding. 03034_ K-01 Serf collects debris. 03035_ Acquired 53 matter. 03037_ Dropped Unknown Device. 03037_ K-01 Serf collects debris. 03038_ Acquired Imp. Propulsion Shielding. 03040_ Dropped Unknown Device. 03040_ Acquired Lgt. Treads. 03050_ System corrupted: Matter fused (-9). Map ----- +----------------------------------------------------+ | ?????????????????## # | | ?????????????????# # """ # | | ?????????????????? # ""R" # | | ???????????#######? "" " + """ | | ?????????? # # """ = = | | ?????????# # # """ %% | | ?????????# # # """ !!! # | | ?????????# """ """ # # !! # | | ?????????# """ """ ## #+### !!! + | | ?????????# """ """ ## # % # | | ?????????# # ## ## # # | | ?????????# # # ### # | | ?????#########+###### ## # # ###+######### | | ?????# + # # ## ##???????????# | | ?????# # # # ##?????????????# | | ?????# #^ # # # ##????????????? | | ?????# + + # ### ###??????????? | | ?????# # # # #??????????? | | ?????# # # # #??????????? | | ?????######## ######## #??????????? | | ????????????# #????## # # ##??????????? | | ????????????# ###############???????????? | | ????????????# # ! #?????????????????? | | ????????????# # = #?????????????????? | | ???########## # #?????????????????? | | ???# # #=@""" #?????????????????? | | ???# """ # # """ #?????????????????? | | ???# """ # # """ #?????????????????? | | ???# """ + # #?????????????????? | | ???# """ # # """ #?????#???????????? | | ???# """ # # """ #???? #???????????? | | ???# # # g""" #??? #???????????? | | ???# # # g #?? #???????????? | | ???# = # ###g####### #???????????? | | ???########## ![ #???????????? | | ?????# # ! [ * +???????????? | | ?????#" # [ ![[ #???????????? | | ?????#T """ + ########### #???????????? | | ?????#" """ # #??????????? #???????????? | | ?????# """ # #???????????? #???????????? | | ?????# # #?????????????????????????? | | ?????######## #?????????????????????????? | | ????????????# #?????????????????????????? | | ????????????# #?????????????????????????? | | ????????????# /?????????????????????????? | | ????????????# #?????????????????????????? | | ????????????# #?????????????????????????? | | ????????????# #?????????????????????????? | | ????????????# #?????????????????????????? | | ????????????# #?????????????????????????? | +----------------------------------------------------+ Best States ------------- Heat Dissipation 31 Energy Generation 14 Energy Capacity 280 Matter Stores 300 Matter Capacity 300 Sight Range 16 Robot Scan Range 14 Terrain Scan Range 16 Terrain Scan Density 10 Armor Coverage 450 Utility Shielding 33 Evasion (%) 44 Recoil Reduction 3 Offensive Hacking 10 Item Schematics ----------------- None Robot Schematics ------------------ None Fabricated ------------ Nothing Repaired ---------- Lgt. Treads | 32% | -10/Materials Lgt. Treads | 58% | -10/Materials Alien Tech Used ----------------- None Achievements -------------- None Challenges ------------ None Game ------ Seed TimingAssembledRouter Manual? 0 Play Time 01:02:48 Cumulative 41.7 hours Start 2025.08.23 @ 00:11:11 End 2025.08.23 @ 01:13:00 Sessions 1 Manual Loads 0 Difficulty Rogue Special Mode None Game No. 15 Rogue 14 Adventurer 1 Explorer 0 Win Type - Total 0 Types 0/0/0/0/0/0/0/0/0/0 Lore% 18 Gallery% 29 Achievement% 32 Wizard Run 0 Options --------- Layout 1 ASCII 0 Keyboard 1 Movement Vi Keybinds 0 Fullscreen 2 Font 32/Terminus Map View 50x35 Zoom Use 0% Tactical HUD 1 Map Filters NONE Filters NONE Steam 1 RUN: aced17c2-b47f-49c2-acef-e1f0171e96ce